Cogmind - Beta 14 @@@ ROGUE MODE // 2025.05.03 @ 16:11:14 Player: BVrutally Odd Result: Destroyed by YI-UF0 with YI-UF0's Doublenader Performance ------------- Evolutions (0) 0 Regions Visited (4) 800 Robots Destroyed (29) 145 Value Destroyed (644) 644 Prototype IDs (25) 500 Alien Tech Used (0) 0 Bonus (300) 300 TOTAL SCORE: 2389 Bonus ------- Aligned with FarCom 300 Cogmind --------- Core Integrity 0/250 Matter 285/300 Energy 19/275 System Corruption 0% Temperature Warm (181) Movement Core (1200) Ox23 Location -9/Mines Parts ------- > --- POWER (1) -------- Deuterium Engine > --- PROPULSION (2) --- (None) > --- UTILITY (2) ------ High-capacity Storage Unit > --- WEAPON (2) ------- Firepult > --- INVENTORY (20) --- Light Treads Light Treads Light Treads Aluminum Leg Aluminum Leg Wheel Sensor Array Improved Terrain Scanner Advanced Targeting Computer Light Armor Plating Light Armor Plating Heavy Armor Plating Hardened Medium Armor Plating Hacking Suite Assault Rifle Assault Rifle Peak State ------------ > --- POWER ------------ Deuterium Engine > --- PROPULSION ------- (None) > --- UTILITY ---------- High-capacity Storage Unit > --- WEAPON ----------- Firepult > --- INVENTORY -------- Light Treads Light Treads Light Treads Aluminum Leg Aluminum Leg Wheel Sensor Array Improved Terrain Scanner Advanced Targeting Computer Light Armor Plating Light Armor Plating Heavy Armor Plating Hardened Medium Armor Plating Hacking Suite Assault Rifle Assault Rifle [Rating: 26] Favorites ----------- Power Light Nuclear Core Engine Light Ion Engine Power Core Light Nuclear Core Propulsion Light Treads Treads Light Treads Utility High-capacity Storage Unit Device Heat Sink Storage High-capacity Storage Unit Processor Transport Network Coupler Protection Light Armor Plating Weapon Assault Rifle Energy Gun Medium Laser Energy Cannon Firepult Ballistic Gun Assault Rifle Build | -11 -10 -10 -10 -9 ------- Run | Yrd Mat Min Exi Min Slots Evolved . | . . . . . Power . | . . . . . Propulsion . | . . . . . Utility . | . . . . . Weapon . | . . . . . Parts Attached 28 | 7 11 7 1 2 Power 4 | 1 1 1 . 1 Engine 3 | 1 . 1 . 1 Core 1 | . 1 . . . Reactor . | . . . . . Propulsion 6 | 2 2 2 . . Treads 6 | 2 2 2 . . Leg . | . . . . . Wheel . | . . . . . Hover . | . . . . . Flight . | . . . . . Utility 9 | 2 4 3 . . Device 4 | 1 2 1 . . Storage 2 | 1 1 . . . Processor 1 | . 1 . . . Hackware . | . . . . . Protection 2 | . . 2 . . Artifact . | . . . . . Weapon 9 | 2 4 1 1 1 Energy Gun 4 | 2 1 . 1 . Energy Cannon 1 | . . . . 1 Ballistic Gun 4 | . 3 1 . . Ballistic Cannon . | . . . . . Launcher . | . . . . . Special Weapon . | . . . . . Impact Weapon . | . . . . . Slashing Weapon . | . . . . . Piercing Weapon . | . . . . . Special Melee Weapon . | . . . . . Unidentified Prototypes . | . . . . . Parts Lost 6 | . . 1 . 5 Power 2 | . . 1 . 1 Propulsion 2 | . . . . 2 Utility 1 | . . . . 1 Weapon 1 | . . . . 1 Highest Loss Streak 5 | . . 1 . 5 To Critical Strikes . | . . . . . Average Slot Usage (%) 99 | . 100 98 100 88 Engine 7 | . 3 12 14 11 Core 6 | . 10 . . . Treads 27 | . 28 28 28 25 Device 8 | . 13 3 . . Storage 14 | . 14 14 14 14 Protection 5 | . . 10 14 9 Energy Gun 2 | . 2 . 6 12 Ballistic Gun 25 | . 25 28 21 12 Peak Build Rating 26 | 7 10 12 14 26 Average Rating 9 | 5 9 10 12 13 On Entrance 8 | . 7 10 11 14 Naked Turns . | . . . . . Heaviest Build 52 | 14 50 51 52 52 Greatest Support 40 | 40 40 40 40 40 Greatest Overweight (x) 1 | . 1 1 1 1 Average Overweight (x) . | . . 1 1 1 Largest Inventory Capacity 20 | 8 20 20 20 20 Average Capacity 17 | 7 16 20 20 20 Most Carried 20 | 7 14 20 20 20 Average Carried 13 | 5 10 18 19 19 Final Capacity 20 | 8 20 20 20 20 Final Carried 20 | 7 14 20 20 17 Class Distribution -------------------- 91% | Mutant 8% | Scavenger-Mutant Dominant Class ---------------- Mutant | -10/Materials Mutant | -10/Mines Mutant | -10/Exiles Scavenger-Mutant | -9/Mines Resources | -11 -10 -10 -10 -9 ----------- Run | Yrd Mat Min Exi Min Matter Collected 812 | 270 386 111 30 15 Remotely . | . . . . . Salvage Created 890 | 119 606 107 . 58 Parts 70 | 8 47 6 . 9 Haulers Intercepted 1 | . 1 . . . Recyclers Shooed 5 | . . 4 . 1 Parts Field Recycled . | . . . . . Retrieved Matter . | . . . . . Parts Self-Destructed . | . . . . . Prevented . | . . . . . Kills | -11 -10 -10 -10 -9 ------- Run | Yrd Mat Min Exi Min Combat Hostiles Destroyed 19 | . 13 2 . 4 Guns 19 | . 13 2 . 4 Classes Destroyed 9 | 2 6 1 . . Builder 1 | . 1 . . . Tunneler 3 | 3 . . . . Hauler 1 | . 1 . . . Recycler 1 | 1 . . . . Operator 1 | . 1 . . . Watcher 3 | . 3 . . . Swarmer 7 | . 3 . . 4 Grunt 10 | . 10 . . . Sentry 2 | . . 2 . . Best Kill Streak 4 | 2 3 2 . 4 Combat Bots Only 4 | . 3 2 . 4 Max Kills in Single Turn 1 | 1 1 1 . 1 Gunslinging . | . . . . . Exploded . | . . . . . Melee . | . . . . . Uniques/NPCs Destroyed . | . . . . . Combat | -11 -10 -10 -10 -9 -------- Run | Yrd Mat Min Exi Min Hostile Shots Fired 115 | . 60 14 . 41 Missed 28 | . 12 7 . 9 Damage Taken 1354 | . 554 103 . 697 Core 251 | . 47 15 . 189 Absorbed by Shields . | . . . . . Core Remaining (%) 100 | 100 . . . . Volleys Fired 82 | 8 52 11 . 11 Largest 2 | 2 2 2 . 2 Hottest 250 | 90 70 43 . 250 Shots Fired 163 | 16 104 22 . 21 Gun 162 | 16 104 22 . 20 Cannon 1 | . . . . 1 Launcher . | . . . . . Special . | . . . . . Kinetic 124 | . 92 22 . 10 Thermal 39 | 16 12 . . 11 Explosive . | . . . . . Electromagnetic . | . . . . . Robot Hit Streak 8 | 7 8 8 . 3 Robot Miss Streak 4 | 1 4 2 . 3 Penetration Max . | . . . . . Secondary Targets 2 | . . . . 2 Max Gunslinging Chain 1 | . . . . 1 Shots Hit Robots 104 | 13 65 15 . 11 Core Hits 46 | 5 31 5 . 5 Critical Kills . | . . . . . Critical Parts Destroyed . | . . . . . Critical Strikes 2 | . 2 . . . Burn 2 | . 2 . . . Melee Attacks . | . . . . . Impact . | . . . . . Slashing . | . . . . . Piercing . | . . . . . Sneak Attacks . | . . . . . Combat Hostiles . | . . . . . Follow-up Attacks . | . . . . . Damage Inflicted 1406 | 156 820 220 . 210 Guns 1340 | 156 817 220 . 147 Cannons 16 | . . . . 16 Explosions 47 | . . . . 47 Melee . | . . . . . Ramming 3 | . 3 . . . Kinetic 982 | . 716 220 . 46 Thermal 421 | 156 101 . . 164 Explosive . | . . . . . Electromagnetic . | . . . . . Impact . | . . . . . Slashing . | . . . . . Piercing . | . . . . . Highest Corruption . | . . . . . Average Corruption . | . . . . . Corruption Purged . | . . . . . Corruption Blocked . | . . . . . Overload Shots . | . . . . . Overflow Damage . | . . . . . Projectiles . | . . . . . Explosions . | . . . . . Melee . | . . . . . Knockbacks . | . . . . . Impact . | . . . . . Kinetic . | . . . . . Secondary . | . . . . . Self-Inflicted Damage . | . . . . . Shots . | . . . . . Rammed 1 | . 1 . . . Targets Rammed 1 | . 1 . . . Kicked . | . . . . . Crushed . | . . . . . Highest Temperature 200 | 60 69 . . 200 Average Temperature 38 | 21 34 . . 56 Received Heat Transfer 282 | . 255 27 . . Siege Activations . | . . . . . Robots Corrupted . | . . . . . Combat Hostiles . | . . . . . Parts Fried . | . . . . . Impact Corruptions . | . . . . . Robots Melted . | . . . . . Combat Hostiles . | . . . . . Parts Melted 3 | 2 1 . . . Heat Transferred 1432 | 409 444 . . 579 Parts Sabotaged . | . . . . . Parts Stolen . | . . . . . Parts Stripped . | . . . . . Power Chain Reactions . | . . . . . Alert | -11 -10 -10 -10 -9 ------- Run | Yrd Mat Min Exi Min Peak Influence 250 | 20 250 47 . 90 Initial 13 | . 13 1 . . Average 57 | 9 83 16 . 78 Maximum Alert Level 1 | . 1 . . . Low Security (%) 95 | 100 93 100 . 100 Level 1 4 | . 6 . . . Level 2 . | . . . . . Level 3 . | . . . . . Level 4 . | . . . . . Level 5 . | . . . . . High Security . | . . . . . Max Security . | . . . . . Squads Dispatched 3 | . 2 1 . . Investigation 2 | . 1 1 . . Extermination . | . . . . . Reinforcement 1 | . 1 . . . Assault . | . . . . . Garrison . | . . . . . Intercept . | . . . . . Searches Triggered . | . . . . . Construction Impeded . | . . . . . Haulers Reinforced . | . . . . . Active Scanning Responses . | . . . . . Cargo Convoy Interrupts . | . . . . . Stealth | -11 -10 -10 -10 -9 --------- Run | Yrd Mat Min Exi Min Distress Signals 3 | . 3 . . . Communications Jammed . | . . . . . Distress Signals . | . . . . . Times Spotted 29 | . 22 2 . 5 Peak Tracking Total 4 | . 3 2 . 4 Tactical Retreats 1 | . 1 . . . Traps | -11 -10 -10 -10 -9 ------- Run | Yrd Mat Min Exi Min Traps Triggered . | . . . . . Indirectly . | . . . . . Trap Hack Attempts . | . . . . . Triggered . | . . . . . Disarmed . | . . . . . Reprogrammed . | . . . . . Reused . | . . . . . Traps Extracted . | . . . . . Installed . | . . . . . Triggered . | . . . . . Machines | -11 -10 -10 -10 -9 ---------- Run | Yrd Mat Min Exi Min Machines Disabled 2 | . 1 . . 1 Max in Single Turn 1 | . 1 . . 1 Machines Repaired . | . . . . . Machines Dismantled . | . . . . . Machines Sabotaged . | . . . . . Overloaded Fab Kills . | . . . . . Hacking | -11 -10 -10 -10 -9 --------- Run | Yrd Mat Min Exi Min Machines Accessed 8 | . 5 1 2 . Terminals 5 | . 5 . . . Fabricators . | . . . . . Repair Stations . | . . . . . Recycling Units . | . . . . . Scanalyzers . | . . . . . Garrison Access . | . . . . . Total Hacks 20 | . 17 1 2 . Successful 12 | . 9 1 2 . Failed 8 | . 8 . . . Catastrophic . | . . . . . Database Lockouts . | . . . . . Manual 10 | . 9 . 1 . Terminals 17 | . 17 . . . Fabricators . | . . . . . Repair Stations . | . . . . . Recycling Units . | . . . . . Scanalyzers . | . . . . . Garrison Access . | . . . . . Terminal Hacks 9 | . 6 1 2 . Record 1 | . . . 1 . Robot Analysis 1 | . 1 . . . Prototype ID Bank 1 | . 1 . . . Open Door 1 | . . 1 . . Branch Access Points 1 | . 1 . . . Locate Traps 1 | . 1 . . . Hauler Manifests 2 | . 2 . . . Derelict Proto ID Bank 1 | . . . 1 . Fabricator Hacks . | . . . . . Repair Station Hacks . | . . . . . Recycling Unit Hacks . | . . . . . Scanalyzer . | . . . . . Garrison Access Hacks . | . . . . . Unauthorized Hacks 3 | . 3 . . . Terminals 3 | . 3 . . . Botnet 2 | . 2 . . . Operators 1 | . 1 . . . Fabricators . | . . . . . Repair Stations . | . . . . . Recycling Units . | . . . . . Scanalyzers . | . . . . . Garrison Access . | . . . . . Data Cores Recovered . | . . . . . Used . | . . . . . Hacking Detections 5 | . 5 . . . Full Trace Events 1 | . 1 . . . Feedback Events . | . . . . . Feedback Blocked . | . . . . . Robot Schematics Acquired . | . . . . . Robots Built . | . . . . . Authchips . | . . . . . Time . | . . . . . Total Robot Build Rating . | . . . . . Part Schematics Acquired . | . . . . . Parts Built . | . . . . . Authchips . | . . . . . Time . | . . . . . Total Part Build Rating . | . . . . . Parts Repaired . | . . . . . Time . | . . . . . Parts Recycled . | . . . . . Recycled Matter . | . . . . . Retrieved Matter . | . . . . . Retrieved Components . | . . . . . Parts Scanalyzed . | . . . . . Part Schematics Acquired . | . . . . . Parts Damaged . | . . . . . Bothacking | -11 -10 -10 -10 -9 ------------ Run | Yrd Mat Min Exi Min Used RIF Installer . | . . . . . Robots Hacked . | . . . . . Non-combat . | . . . . . Combat . | . . . . . Robot Hacks Applied . | . . . . . Relay Couplers Released . | . . . . . Fabnet Peak Effective % . | . . . . . Robots Rewired . | . . . . . Allies Hacked . | . . . . . Hacks Repelled . | . . . . . Allies | -11 -10 -10 -10 -9 -------- Run | Yrd Mat Min Exi Min Total Allies . | . . . . . Largest Group . | . . . . . Highest-Rated Group . | . . . . . Highest-Rated Ally . | . . . . . Total Orders . | . . . . . Ally Attacks . | . . . . . Total Damage . | . . . . . Kills . | . . . . . Allies Corrupted . | . . . . . Allies Melted . | . . . . . Intel | -11 -10 -10 -10 -9 ------- Run | Yrd Mat Min Exi Min Robot Analysis Total 1 | . 1 . . . Derelict Logs Recovered 1 | . . . . 1 Drone Launches . | . . . . . Drone Recoveries . | . . . . . Exploration | -11 -10 -10 -10 -9 ------------- Run | Yrd Mat Min Exi Min Turns Passed 3930 | 276 2010 990 561 93 Spaces Moved 1113 | 155 532 173 233 20 Core 11 | 11 . . . . Treads 1102 | 144 532 173 233 20 Legs . | . . . . . Wheels . | . . . . . Hover . | . . . . . Flight . | . . . . . Fastest Speed 50 | 50 160 240 240 240 Average Speed 211 | 152 205 240 240 240 Slowest Speed 240 | 160 240 240 240 240 Overloaded Moves . | . . . . . Propulsion Burnouts . | . . . . . Robots Hopped . | . . . . . Cave-ins Triggered . | . . . . . Exploration Rate (%) 43 | 8 92 47 60 9 Regions Visited 4 Branch Regions 3 Pre-discovered Areas 2 | . . 1 1 . Known Exits Taken 1 | . 1 . . . Unknown Exits Taken 3 | 1 . 1 1 . Scrap Searched 1 | . . 1 . . Spaces Dug . | . . . . . Terrain Destroyed 4 | . . . . 4 Melee . | . . . . . Projectile . | . . . . . AOE 4 | . . . . 4 Terrain Rammed . | . . . . . Walls Destroyed . | . . . . . Machines Disabled . | . . . . . Actions | -11 -10 -10 -10 -9 --------- Run | Yrd Mat Min Exi Min Total 2526 | 176 1342 727 236 45 Wait 1261 | . 730 520 . 11 Move 1109 | 154 531 172 232 20 Hop . | . . . . . Pick Up 27 | 7 9 10 1 . Fast Attach 8 | 7 1 . . . Attach 3 | . . 1 . 2 Detach . | . . . . . Swap 17 | . 10 6 1 . Drop 18 | . 8 7 2 1 Fire 82 | 8 52 11 . 11 Melee . | . . . . . Ram . | . . . . . Kick . | . . . . . Crush 1 | . 1 . . . Escape Stasis . | . . . . . Rewire . | . . . . . Trap . | . . . . . Miscellaneous . | . . . . . Route ------- -11/Scrapyard -10/Materials (discovered 5 exits: [*Mat x3] / *Min x2) -10/Mines (discovered 2 exits: [*Mat] / *Exi) -10/Exiles -9/Mines (discovered 1 exit: Mat) History --------- Turn | Location | Event 4 | -11/Scrapyard | Discovered new exit (range 15) 277 | -11/Scrapyard | Entered Materials 316 | -10/Materials | Build established: Mutant 369 | -10/Materials | Discovered new exit (range 12) 1744 | -10/Materials | Discovered new exit (range 14) 2006 | -10/Materials | Discovered new exit (range 5) 2047 | -10/Materials | Identified exit to Mines 2287 | -10/Materials | Entered Mines 2353 | -10/Mines | Discovered new exit (range 16) 2625 | -10/Mines | Met a Derelict shopkeep closing up shop 3227 | -10/Mines | Learned location of Storage (-8) 3267 | -10/Mines | Deemed a non-threat by the Exiles lab entrance 3267 | -10/Mines | Discovered new exit (range 5) 3277 | -10/Mines | Entered Exiles 3342 | -10/Exiles | Met 8R-AWN 3378 | -10/Exiles | Met EX-HEX 3455 | -10/Exiles | Met EX-BIN 3489 | -10/Exiles | Aligned with FarCom system 3491 | -10/Exiles | Given EX-Vault access code 3551 | -10/Exiles | Opened EX-Vault 3566 | -10/Exiles | Found Firepult 3615 | -10/Exiles | Warned to stay clear of 0b10 Research branches 3684 | -10/Exiles | Met EX-DEC 3694 | -10/Exiles | Learned location of Zion (-7) 3809 | -10/Exiles | Discovered new exit (range 14) 3838 | -10/Exiles | Left Exiles lab with Firepult 3838 | -10/Exiles | Entered Mines 3871 | -9/Mines | Build established: Scavenger-Mutant 3897 | -9/Mines | Identified exit to Materials 3916 | -9/Mines | Core integrity fell below 50% 3930 | -9/Mines | Core integrity fell below 20% 3931 | -9/Mines | Destroyed by YI-UF0 with YI-UF0's Doublenader Last Messages --------------- 03844_ Switching to secondary target: S-10 Pest. 03847_ S-10 Pest destroyed. 03847_ Switching to secondary target: S-10 Pest. 03850_ S-10 Pest destroyed. 03871_ Acquired 15 matter. 03897_ Acquired derelict log, extracted data. Loading 1 Mines exit... 03909_ Lgt. Armor Plating destroyed. 03911_ YI-UF0 mumbles something. 03913_ Lgt. Ion Engine destroyed. 03918_ The unstable cave ceiling collapses. 03924_ Hvy. Assault Rifle destroyed. 03924_ Lgt. Treads destroyed. 03926_ Dropped Beam Rifle. 03927_ Lgt. Treads destroyed. 03929_ The unstable cave ceiling collapses. 03929_ U-05 Engineer builds a Wall. 03930_ YI-UF0 heat damages Imp. Deuterium Engine. 03930_ The unstable cave ceiling collapses. Map ----- +----------------------------------------------------+ | | | | | | | | | | | | | ?????????????????????????????? | | ?????????????????????????????? | | ??######?????????????????????? | | ?## #######???????????????? | | ?# ## #???????????????? | | ?# = #???????????????? | | ?# [%* #???????????????? | | ??# *% #????????????????? | | ??## ==[ ##????????????????? | | ???##*%% #?????????????????? | | ????#=### ##?????????????????? | | ???## ## ##?????????????????? | | ??## #?????????????????? | | ### #?????????????????? | | # #?????????????????? | | #?????????????????? | | #?????????????????? | | #?????????????????? | | #?????????????????? | | @ ##?????????????????? | | # #??????????????????? | | # ##??????????????????? | | ## #???????????????????? | | ?### ??????????????????? | | ???# ?????????????????? | | ???# #????????????????? | | ???## ###????????????????? | | ????# g #??????????????????? | | ????? r ?????????????????? | | ?????# %?????????????????? | | ?????? ##????????????????? | | ?????? ?????????????????? | | ?????? ?????????????????? | | ?????? ???????????????????? | | ?????? ?????????????????????? | | ?????????????????????????????? | | ?????????????????????????????? | | ?????????????????????????????? | | ?????????????????????????????? | | ?????????????????????????????? | | ?????????????????????????????? | | ?????????????????????????????? | | ?????????????????????????????? | | ?????????????????????????????? | +----------------------------------------------------+ Best States ------------- Heat Dissipation 35 Energy Generation 14 Energy Capacity 250 Matter Stores 300 Matter Capacity 300 Sight Range 16 Terrain Scan Density 10 Armor Coverage 150 Evasion (%) 40 Recoil Reduction 2 Item Schematics ----------------- None Robot Schematics ------------------ None Fabricated ------------ Nothing Alien Tech Used ----------------- None Achievements -------------- None Challenges ------------ None Game ------ Seed RegenerativeDefenseShotgun Manual? 0 Play Time 00:14:44 Cumulative 245.8 hours Start 2025.05.03 @ 15:56:09 End 2025.05.03 @ 16:11:14 Sessions 1 Manual Loads 0 Difficulty Rogue Special Mode None Game No. 119 Rogue 60 Adventurer 16 Explorer 43 Win Type - Total 33 Types 20/5/2/1/0/1/2/1/1 Lore% 86 Gallery% 88 Achievement% 81 Wizard Run 0 Options --------- Layout 2 ASCII 0 Keyboard 0 Movement Mouse Keybinds 0 Fullscreen 1 Font 32/Tamsyn Map View 50x44 Zoom Use 0% Tactical HUD 1 Map Filters NONE Filters NONE Steam 1 RUN: 0b903b47-f6ac-4784-9740-046e3932653d